bitfinex/quotes_SOLUSD_20240808
["timestamp","ask_amount","ask_price","bid_price","bid_amount"]
[1723097579956,6.4286,152.97,152.85,39.67419558]
[1723097581341,0.17,152.96,152.86,65.0]
[1723097581556,0.65419338,152.87,152.86,45.0]
[1723097581737,0.65419338,152.87,152.85,2.64419558]
[1723097581932,0.65419338,152.87,152.83,4.9301326]
[1723097582634,0.65419338,152.87,152.82,52.4203]
[1723097582939,0.65419338,152.87,152.83,20.0]
[1723097583141,0.65419338,152.87,152.84,0.17]
[1723097583459,0.65419338,152.87,152.84,20.34]
[1723097583760,0.65419338,152.87,152.86,37.03]
[1723097584066,6.4286,152.97,152.86,108.29776494]
[1723097584366,16.3418,153.01,152.93,37.03]
[1723097584367,22.7427,153.01,152.93,37.03]
[1723097584664,22.7427,153.01,152.87,83.8478326]
[1723097584841,22.7427,153.01,152.88,46.30746259]
[1723097585167,22.7427,153.01,152.91,37.03]
[1723097585333,22.7427,153.01,152.92,65.34]
[1723097586236,1.63452016,153.0,152.87,2.68564448]
[1723097586442,1.63470726,152.99,152.85,37.03]
[1723097586665,6.4802,152.98,152.85,37.03]
[1723097587073,6.4802,152.98,152.88,37.03]
[1723097587766,8.11463174,152.98,152.89,65.0]
[1723097587956,8.11463174,152.98,152.89,20.17]
[1723097588155,8.11463174,152.98,152.85,39.68849098]
[1723097589364,6.1641,152.96,152.83,6.8385022]
[1723097589537,6.1641,152.96,152.83,37.03]
[1723097589739,1.63482858,152.95,152.83,39.72949392]
[1723097589974,6.1641,152.96,152.83,39.72949392]
[1723097590146,7.79902377,152.96,152.83,39.72949392]
[1723097590346,6.1641,152.96,152.83,39.72949392]
[1723097590861,6.1641,152.96,152.86,37.03]
[1723097591047,6.1641,152.96,152.87,45.17]
[1723097591250,1.63482203,152.95,152.81,6.83812139]
[1723097591452,6.389,152.94,152.81,6.83812139]
[1723097591644,1.63516497,152.93,152.8,37.03]
[1723097591839,1.63516549,152.92,152.8,39.62628809]
[1723097592672,6.389,152.94,152.8,39.62628809]
[1723097593379,6.4656,152.92,152.8,37.03]
[1723097593550,1.63550784,152.91,152.77,41.9601326]
[1723097593876,1.63550784,152.91,152.77,44.54564504]
[1723097594763,1.63550784,152.91,152.78,45.0]
[1723097595069,6.1412,152.88,152.77,39.61551244]
[1723097595267,6.1412,152.88,152.75,15.4236]
[1723097595268,1.63591026,152.87,152.75,15.4236]
[1723097595483,1.63591026,152.87,152.75,18.11498241]
[1723097595776,6.1412,152.88,152.77,37.03]
[1723097595945,6.1412,152.88,152.77,38.33847153]
[1723097596361,6.1412,152.88,152.77,38.33836427]
[1723097596541,6.1412,152.88,152.78,20.0]
[1723097596766,6.1412,152.88,152.79,45.0]
[1723097596940,6.1412,152.88,152.8,20.17]
[1723097597145,6.1412,152.88,152.81,45.0]
[1723097597371,6.1412,152.88,152.82,0.17]
[1723097598448,6.1412,152.88,152.81,45.0]
[1723097598766,6.1412,152.88,152.82,0.17]
[1723097599180,6.1412,152.88,152.86,37.03]
[1723097599349,16.2845,152.93,152.87,65.17]
[1723097599754,16.2845,152.93,152.88,0.17]
[1723097600045,389.1,153.02,152.89,37.03]
[1723097600046,15.9362,152.97,152.89,37.03]
[1723097600242,15.9362,152.97,152.9,66.64757726]
[1723097600445,15.9362,152.97,152.9,65.34]
[1723097601657,0.65402224,152.91,152.9,65.34]
[1723097602083,0.65402224,152.91,152.9,66.64735551]
[1723097604676,0.65402224,152.91,152.9,66.64748556]
[1723097606658,0.65402224,152.91,152.9,65.34]
[1723097607377,0.65402224,152.91,152.9,66.64754421]
[1723097607689,6.1421,153.0,152.9,66.64754421]
[1723097607859,6.5873,153.05,152.95,37.03]
[1723097608054,6.5873,153.05,152.96,65.34]
[1723097608458,6.5873,153.05,152.96,65.17]
[1723097608657,1.63414342,153.04,152.96,65.0]
[1723097608896,6.5873,153.05,152.96,65.0]
[1723097610480,1.63410876,153.04,152.92,37.03]
[1723097610686,0.17,153.03,152.91,0.17]
[1723097610994,0.17,153.03,152.9,15.9786]
[1723097611172,0.34,153.03,152.88,37.03]
[1723097611379,6.3093,153.02,152.88,39.61232148]
[1723097611558,16.3957,153.0,152.88,37.03]
[1723097611760,389.1,152.99,152.85,52.7639]
[1723097611964,6.4545,152.98,152.85,37.03]
[1723097612197,21.80510459,152.97,152.83,16.3957]
[1723097612366,21.80510459,152.97,152.82,37.03]
[1723097612367,389.1,152.96,152.82,37.03]
[1723097612766,0.17,152.95,152.82,37.03]
[1723097613268,389.1,152.96,152.83,46.30805869]
[1723097613507,1.63498769,152.95,152.84,0.17]
[1723097613672,1.63498769,152.95,152.84,20.0]
[1723097613876,21.7342,152.94,152.82,39.6749894]
[1723097614176,1.8054261,152.93,152.79,43.86078603]
[1723097614362,1.8054261,152.93,152.79,37.03]
[1723097614797,1.63549254,152.92,152.79,37.03]
[1723097615094,390.73549254,152.92,152.79,39.64593385]
[1723097615272,390.73549254,152.92,152.79,37.03]
[1723097615273,0.17,152.91,152.79,37.03]
[1723097615473,1.80564401,152.91,152.79,37.03]
[1723097615805,1.80564401,152.91,152.76,57.7004326]
[1723097616014,395.6656,152.9,152.76,52.7703]
[1723097616166,395.6656,152.9,152.76,37.03]
[1723097616167,21.63578563,152.89,152.76,37.03]
[1723097616367,15.9781,152.88,152.76,37.03]
[1723097616567,1.63597768,152.87,152.76,37.03]
[1723097616836,15.9781,152.88,152.76,37.03]
[1723097616837,15.8081,152.88,152.76,37.03]
[1723097617096,15.8081,152.88,152.79,37.03]
[1723097617397,15.8081,152.88,152.79,38.33841042]
[1723097617567,15.8081,152.88,152.79,37.03]
[1723097617899,15.8081,152.88,152.8,65.34]
[1723097618119,15.8081,152.88,152.8,66.64848903]
[1723097618309,15.8081,152.88,152.8,65.34]
[1723097619018,395.6656,152.9,152.82,37.03]
[1723097619189,395.6656,152.9,152.83,66.64811376]
[1723097619383,6.5656,152.9,152.83,66.64811376]
[1723097619983,22.6377,152.96,152.85,37.03]
[1723097620199,22.6377,152.96,152.86,66.6477981]
[1723097620400,22.6377,152.96,152.88,37.03]
[1723097620694,22.6377,152.96,152.89,66.64770051]
[1723097620896,22.6377,152.96,152.9,1.30763336]
[1723097621101,22.6377,152.96,152.91,0.17]
[1723097621297,22.6377,152.96,152.89,65.17]
[1723097621502,22.6377,152.96,152.9,0.17]
[1723097624616,22.6377,152.96,152.9,0.34]
[1723097625389,6.3969,152.96,152.9,0.34]
[1723097625715,6.3969,152.96,152.9,1.64756763]
[1723097625923,6.3969,152.96,152.9,0.34]
[1723097626938,6.2652,153.0,152.91,37.03]
[1723097627216,6.2652,153.0,152.92,66.30711966]
[1723097627391,6.2652,153.0,152.93,0.34]
[1723097628720,6.2652,153.0,152.93,1.47745976]
[1723097628907,6.2652,153.0,152.94,0.17]
[1723097629099,6.2652,153.0,152.94,1.4773196]
[1723097629296,6.2652,153.0,152.95,0.17]
[1723097629504,6.2652,153.0,152.95,65.17]
[1723097630009,6.2652,153.0,152.96,0.17]
[1723097630799,6.5553,153.04,152.96,0.17]
[1723097631428,1.63395035,153.03,152.95,20.0]
[1723097631718,6.5553,153.04,152.92,20.0]
[1723097632220,8.18953927,153.04,152.92,20.0]
[1723097632412,6.5553,153.04,152.92,20.0]
[1723097632820,8.18949509,153.04,152.93,0.17]
[1723097633003,0.17,153.03,152.93,45.0]
[1723097633198,0.17,153.03,152.94,20.0]
[1723097633405,0.17,153.03,152.94,20.17]
[1723097634422,6.5553,153.04,152.95,1.30703814]
[1723097634625,6.5553,153.04,152.95,45.0]
[1723097634824,6.5553,153.04,152.96,0.34]
[1723097635022,6.5553,153.04,152.96,0.17]
[1723097635234,6.5553,153.04,152.95,45.0]
[1723097635727,6.5553,153.04,152.96,0.17]
[1723097636406,6.5553,153.04,152.96,0.34]
[1723097638831,6.5553,153.04,152.96,20.34]
[1723097639034,6.5553,153.04,152.97,45.0]
[1723097639535,6.2232,153.08,152.98,37.2]
[1723097639739,6.2232,153.08,152.99,66.47683921]
[1723097639903,6.2232,153.08,153.01,37.03]
[1723097640097,6.2232,153.08,153.02,45.34]
[1723097640297,7.0461203,153.12,153.02,45.34]
[1723097640515,7.0461203,153.12,153.03,21.30651804]
[1723097640734,1.63289353,153.11,153.03,20.0]
[1723097641048,7.0461203,153.12,153.02,45.17]
[1723097641211,7.0461203,153.12,153.03,20.17]
[1723097641414,7.0461203,153.12,153.04,45.17]
[1723097641641,7.0461203,153.12,153.05,0.17]
[1723097642025,7.0461203,153.12,153.05,20.17]
[1723097642338,0.8149203,153.12,153.1,37.03]
[1723097642519,15.9399,153.21,153.1,37.03]
[1723097642520,6.4637,153.23,153.11,1.47582501]
[1723097642720,6.4637,153.23,153.14,37.03]
[1723097643041,6.4637,153.23,153.15,65.17]
[1723097643241,6.4637,153.23,153.12,0.17]
[1723097643446,6.4637,153.23,153.12,0.34]
[1723097643617,6.4637,153.23,153.13,1.30582946]
[1723097643826,6.4637,153.23,153.14,0.34]
[1723097644126,6.4637,153.23,153.12,0.34]
[1723097645015,6.4637,153.23,153.12,0.17]
[1723097645856,6.4637,153.23,153.14,37.03]
[1723097646013,6.4637,153.23,153.15,66.4753129]
[1723097646215,6.4637,153.23,153.15,65.17]
[1723097646831,6.4637,153.23,153.16,0.17]
[1723097647325,6.4637,153.23,153.15,65.17]
[1723097647842,6.4637,153.23,153.16,0.17]
[1723097648316,1.63185602,153.22,153.15,65.17]
[1723097648517,6.4637,153.23,153.16,0.17]
[1723097648717,6.4637,153.23,153.16,1.47537252]
[1723097648936,6.4637,153.23,153.17,0.17]
[1723097649131,1.63188487,153.22,153.15,20.0]
[1723097649440,6.4637,153.23,153.12,20.0]
[1723097650042,6.4637,153.23,153.11,37.03]
[1723097650248,6.4637,153.23,153.08,15.7243]
[1723097650249,0.17,153.22,153.08,52.7543]
[1723097650457,1.63252016,153.21,153.08,52.7543]
[1723097650746,389.27,153.22,153.09,8.096062]
[1723097650917,389.1,153.22,153.09,8.096062]
[1723097651315,1.63245053,153.21,153.12,37.03]
[1723097651519,389.1,153.22,153.12,37.03]
[1723097651734,6.4637,153.23,153.12,38.33551245]
[1723097651938,6.4637,153.23,153.15,37.03]
[1723097652253,6.4637,153.23,153.16,0.17]
[1723097652745,6.4637,153.23,153.16,65.17]
[1723097653051,6.4637,153.23,153.16,65.34]
[1723097656055,6.4637,153.23,153.16,65.17]
[1723097656251,6.4637,153.23,153.09,27.786062]
[1723097656252,6.4637,153.23,153.12,37.03]
[1723097657536,6.4637,153.23,153.13,46.47546837]
[1723097657855,6.4637,153.23,153.14,0.17]
[1723097658040,6.4637,153.23,153.14,21.47542419]
[1723097658349,6.4637,153.23,153.15,82.2]
[1723097658554,6.4637,153.23,153.16,20.0]
[1723097658725,6.4637,153.23,153.17,45.0]
[1723097658924,6.4637,153.23,153.16,20.0]
[1723097659146,6.4637,153.23,153.17,45.0]
[1723097659349,6.4637,153.23,153.16,20.0]
[1723097659957,6.4637,153.23,153.16,21.30565915]
[1723097660125,6.4637,153.23,153.17,45.0]
[1723097660544,8.09563784,153.23,153.16,20.0]
[1723097660754,8.09563784,153.23,153.15,0.17]
[1723097660953,6.4637,153.23,153.14,45.34]
[1723097661157,6.4637,153.23,153.15,20.0]
[1723097661342,6.4637,153.23,153.16,45.0]
[1723097661541,6.4637,153.23,153.17,0.17]
[1723097662764,6.4637,153.23,153.15,20.0]
[1723097662940,6.4637,153.23,153.13,20.0]
[1723097663143,6.4637,153.23,153.09,48.62559414]
[1723097663348,0.17,153.22,153.09,47.73978385]
[1723097663655,389.27,153.22,153.09,47.73978385]
[1723097663959,389.1,153.22,153.1,1.30588929]
[1723097664166,389.1,153.22,153.09,49.04545321]
[1723097664472,389.1,153.22,153.1,0.17]
[1723097664646,389.1,153.22,153.1,45.34]
[1723097665331,389.1,153.22,153.11,20.0]
[1723097665543,389.1,153.22,153.12,45.34]
[1723097665738,389.1,153.22,153.13,20.0]
[1723097666138,6.6337,153.23,153.09,47.73978385]
[1723097666337,62.50754174,153.22,153.09,8.096062]
[1723097666537,15.875,153.22,153.1,20.0]
[1723097666741,15.535,153.22,153.12,37.03]
[1723097667062,6.4637,153.23,153.13,21.30552889]
[1723097667958,6.4637,153.23,153.14,45.34]
[1723097668170,6.4637,153.23,153.15,20.0]
[1723097668458,6.4637,153.23,153.16,46.64544653]
[1723097668641,15.535,153.26,153.17,20.0]
[1723097668844,15.535,153.26,153.18,46.64531778]
[1723097669049,15.535,153.26,153.18,45.0]
[1723097669437,15.535,153.26,153.19,0.17]
[1723097671753,7.2847203,153.27,153.19,0.17]
[1723097672070,7.2847203,153.27,153.19,1.64514767]
[1723097672368,7.2847203,153.27,153.19,20.34]
[1723097672568,7.2847203,153.27,153.2,45.0]
[1723097672745,1.63156401,153.26,153.19,20.17]
[1723097672939,1.63156401,153.26,153.19,20.0]
[1723097673267,1.63156401,153.26,153.16,19.09537517]
[1723097673268,1.63156401,153.26,153.16,2.65537517]
[1723097673461,7.4547203,153.27,153.12,59.5717]
[1723097673763,7.4547203,153.27,153.21,37.03]
[1723097673764,0.8149203,153.27,153.21,37.03]
[1723097673939,0.8149203,153.27,153.22,1.30480445]
[1723097674140,0.8149203,153.27,153.24,37.03]
[1723097674379,0.8149203,153.27,153.24,38.33474435]
[1723097674664,0.8149203,153.27,153.25,45.34]
[1723097674874,0.8149203,153.27,153.26,1.30474449]
[1723097675041,0.8149203,153.27,153.25,20.0]
[1723097675239,0.8149203,153.27,153.22,20.0]
[1723097675440,0.8149203,153.27,153.23,45.17]
[1723097675749,0.8149203,153.27,153.24,20.0]
[1723097677866,0.8149203,153.27,153.23,45.0]
[1723097678054,0.8149203,153.27,153.18,37.03]
[1723097678260,0.8149203,153.27,153.19,20.0]
[1723097679662,0.8149203,153.27,153.2,45.17]
[1723097679866,0.8149203,153.27,153.21,20.0]
[1723097680770,0.8149203,153.27,153.22,45.0]
[1723097680974,0.8149203,153.27,153.23,20.17]
[1723097681657,0.65261372,153.24,153.23,20.17]
[1723097681887,0.65261372,153.24,153.23,65.17]
[1723097682274,0.65261372,153.24,153.23,65.34]
[1723097683149,0.65261372,153.24,153.23,66.16470928]
[1723097683575,0.65261372,153.24,153.23,65.34]
[1723097684264,0.65261372,153.24,153.23,66.64302486]
[1723097685150,0.8149203,153.27,153.23,82.26922486]
[1723097685364,0.8149203,153.27,153.26,37.03]
[1723097685567,0.8149203,153.27,153.26,102.37]
[1723097687756,0.8149203,153.27,153.26,65.17]
[1723097687965,0.8149203,153.27,153.26,65.0]
[1723097689682,0.8149203,153.27,153.2,37.03]
[1723097689985,0.8149203,153.27,153.19,15.2793]
[1723097690158,0.8149203,153.27,153.17,4.9301326]
[1723097690481,0.8149203,153.27,153.16,15.2793]
[1723097691065,0.8149203,153.27,153.16,16.58453483]
[1723097691903,0.8149203,153.27,153.17,45.17]
[1723097692172,0.8149203,153.27,153.17,45.34]
[1723097692347,0.8149203,153.27,153.18,1.30506441]
[1723097692549,0.8149203,153.27,153.19,0.34]
[1723097692753,0.8149203,153.27,153.19,45.34]
[1723097692982,0.8149203,153.27,153.2,20.0]
[1723097693147,0.8149203,153.27,153.21,45.34]
[1723097693358,0.8149203,153.27,153.22,20.0]
[1723097693561,0.8149203,153.27,153.23,45.17]
[1723097694888,0.8149203,153.27,153.22,20.0]
[1723097695093,0.8149203,153.27,153.21,0.17]
[1723097695259,0.8149203,153.27,153.22,0.17]
[1723097695660,0.8149203,153.27,153.22,1.47451303]
[1723097695859,0.8149203,153.27,153.23,0.17]
[1723097696072,0.8149203,153.27,153.22,0.17]
[1723097696380,0.8149203,153.27,153.21,0.17]
[1723097697855,0.8149203,153.27,153.17,20.0]
[1723097697856,1.63139487,153.26,153.17,20.0]
[1723097698072,0.8149203,153.27,153.17,20.0]
[1723097699288,0.8149203,153.27,153.18,45.34]
[1723097699575,0.8149203,153.27,153.19,20.0]
[1723097699778,0.8149203,153.27,153.2,45.34]
[1723097699960,0.8149203,153.27,153.21,20.0]
[1723097700155,0.8149203,153.27,153.23,37.03]
[1723097700354,0.8149203,153.27,153.24,65.17]
[1723097700572,0.8149203,153.27,153.24,45.0]
[1723097700767,0.8149203,153.27,153.25,20.0]
[1723097701182,0.8149203,153.27,153.17,41.9601326]
[1723097701488,0.8149203,153.27,153.18,45.34]
[1723097701783,0.8149203,153.27,153.21,28.66]
[1723097702364,0.8149203,153.27,153.23,28.66]
[1723097702778,0.8149203,153.27,153.24,20.0]
[1723097702972,21.6671,153.26,153.19,28.66]
[1723097703357,21.6671,153.26,153.17,28.66]
[1723097703358,23.29874374,153.26,153.17,28.66]
[1723097704162,23.29874374,153.26,153.14,20.8013326]
[1723097704163,23.2988674,153.26,153.15,28.66]
[1723097704863,23.2988674,153.26,153.09,37.4897186]
[1723097704864,0.17,153.25,153.13,28.66]
[1723097705085,6.3745,153.23,153.13,28.66]
[1723097705287,15.7241,153.21,153.09,28.66]
[1723097705466,6.1674,153.19,153.09,28.66]
[1723097706967,6.1674,153.19,153.11,28.66]
[1723097707176,6.1674,153.19,153.13,28.66]
[1723097707775,6.1674,153.19,153.14,20.0]
[1723097707995,6.1674,153.19,153.1,20.0]
[1723097708211,6.1674,153.19,153.11,45.34]
[1723097708490,389.1,153.2,153.12,56.89]
[1723097708693,389.1,153.2,153.13,45.34]
[1723097708988,389.1,153.2,153.14,21.30556611]
[1723097709194,389.1,153.2,153.15,45.34]
[1723097709493,389.1,153.2,153.16,21.30547188]
[1723097709789,6.4731,153.23,153.16,20.0]
[1723097710366,6.4731,153.23,153.17,45.17]
[1723097710887,6.4731,153.23,153.12,36.89]
[1723097711094,6.4731,153.23,153.13,45.17]
[1723097711397,6.4731,153.23,153.14,21.30559535]
[1723097711689,6.4731,153.23,153.15,1.30551927]
[1723097711906,6.4731,153.23,153.14,20.0]
[1723097712262,6.4731,153.23,153.15,45.0]
[1723097712495,6.4731,153.23,153.16,20.17]
[1723097713003,6.4731,153.23,153.17,45.0]
[1723097714189,12.2868,153.25,153.17,45.0]
[1723097714375,12.2868,153.25,153.18,20.0]
[1723097714876,1.63197789,153.24,153.18,20.0]
[1723097715078,13.91878318,153.25,153.09,53.0594]
[1723097715383,0.34,153.24,153.1,20.0]
[1723097715573,1.63224992,153.23,153.09,53.0594]
[1723097715767,389.1,153.22,153.1,1.30592457]
[1723097715984,389.1,153.22,153.12,36.89]
[1723097716184,389.1,153.22,153.13,1.30553488]
[1723097716870,12.2868,153.25,153.14,0.34]
[1723097717171,6.3238,153.26,153.16,36.89]
[1723097717497,0.8149203,153.27,153.19,36.89]
[1723097717799,0.8149203,153.27,153.2,66.64497059]
[1723097717978,0.8149203,153.27,153.2,65.34]
[1723097718170,0.8149203,153.27,153.2,65.17]
[1723097719171,0.8149203,153.27,153.21,0.17]
[1723097719791,0.8149203,153.27,153.21,1.47486694]
[1723097720094,0.8149203,153.27,153.22,0.17]
[1723097720676,0.8149203,153.27,153.21,0.17]
[1723097720677,0.8149203,153.27,153.21,0.34]
[1723097720888,0.8149203,153.27,153.2,65.0]
[1723097720889,0.8149203,153.27,153.2,20.0]
[1723097721089,0.8149203,153.27,153.18,21.30519371]
[1723097721575,0.8149203,153.27,153.19,36.89]
[1723097721770,0.8149203,153.27,153.2,21.30483045]
[1723097722179,0.8149203,153.27,153.21,45.34]
[1723097722384,0.8149203,153.27,153.22,20.0]
[1723097722673,0.8149203,153.27,153.23,45.17]
[1723097722886,0.8149203,153.27,153.24,20.0]
[1723097723890,0.8149203,153.27,153.25,45.17]
[1723097724102,0.8149203,153.27,153.26,1.30439751]
[1723097724390,0.8149203,153.27,153.26,21.64439751]
[1723097724588,0.8149203,153.27,153.26,66.64439751]
[1723097724988,0.8149203,153.27,153.26,65.34]
[1723097725498,15.6392,153.37,153.26,65.34]
[1723097725713,15.6392,153.37,153.27,46.64422466]
[1723097726004,15.6392,153.37,153.28,20.0]
[1723097726186,15.6392,153.37,153.29,45.34]
[1723097726372,15.6392,153.37,153.3,20.0]
[1723097726710,15.6392,153.37,153.31,45.17]
[1723097727201,15.6392,153.37,153.3,20.0]
[1723097727405,15.6392,153.37,153.26,20.0]
[1723097727406,1.63039608,153.36,153.26,20.0]
[1723097727577,15.6392,153.37,153.27,45.34]
[1723097727903,15.6392,153.37,153.28,20.0]
[1723097728196,15.6392,153.37,153.29,45.0]
[1723097728496,17.26960612,153.37,153.3,20.17]
[1723097728797,17.26960612,153.37,153.31,45.0]
[1723097728798,15.6392,153.37,153.31,45.0]
[1723097729479,15.6392,153.37,153.3,20.0]
[1723097729480,1.63043192,153.36,153.3,20.0]
[1723097729674,1.63043192,153.36,153.26,20.0]
[1723097729870,1.63043192,153.36,153.21,16.3816]
[1723097730091,0.17,153.35,153.21,16.3816]
[1723097730294,1.80103792,153.35,153.21,16.3816]
[1723097731306,1.80103792,153.35,153.22,20.0]
[1723097732198,16.3889,153.33,153.18,15.1097]
[1723097732495,16.3889,153.33,153.19,0.43149484]
[1723097732701,16.3889,153.33,153.2,1.30491991]
[1723097733000,16.3889,153.33,153.18,51.9997]
[1723097733001,18.02004274,153.33,153.18,51.9997]
[1723097733180,0.17,153.32,153.19,1.30511402]
[1723097733386,16.3889,153.33,153.18,53.30464152]
[1723097733589,16.3889,153.33,153.19,20.0]
[1723097733792,16.3889,153.33,153.2,45.17]
[1723097733972,16.3889,153.33,153.2,0.17]
[1723097734422,16.3889,153.33,153.2,1.47499144]
[1723097734584,16.3889,153.33,153.2,0.17]
[1723097735203,16.3889,153.33,153.2,20.34]
[1723097735385,16.3889,153.33,153.21,45.0]
[1723097735593,16.3889,153.33,153.22,20.34]
[1723097735794,6.524,153.28,153.14,15.0845]
[1723097736103,58.4669,153.31,153.12,6.0564]
[1723097736104,21.702,153.26,153.12,6.0564]
[1723097736316,8.32748086,153.25,153.1,21.6385]
[1723097736505,8.32748086,153.25,153.1,24.31008115]
[1723097736814,15.1771,153.26,153.11,1.30575145]
[1723097736980,16.80910671,153.26,153.11,1.30575145]
[1723097737179,16.80910671,153.26,153.1,24.31008115]
[1723097737180,1.97200671,153.25,153.1,24.31008115]
[1723097737406,6.2571,153.24,153.1,6.554]
[1723097737701,1.80235034,153.23,153.11,20.0]
[1723097738281,6.0534,153.21,153.11,20.0]
[1723097738478,6.0534,153.21,153.1,6.554]
[1723097738479,1.80256335,153.2,153.1,6.554]
[1723097739806,1.80256335,153.2,153.11,20.0]
[1723097740404,1.80256335,153.2,153.09,6.554]
[1723097740603,0.17,153.2,153.1,26.554]
[1723097740789,1.80262467,153.2,153.11,20.0]
[1723097741110,6.0534,153.21,153.12,1.30624208]
[1723097741483,6.0534,153.21,153.13,36.89]
[1723097741805,0.65303991,153.14,153.13,36.89]
[1723097741995,6.1756,153.25,153.13,36.89]
[1723097742202,6.1756,153.25,153.14,20.0]
[1723097742385,6.1756,153.25,153.15,0.34]
[1723097743688,6.1756,153.25,153.15,1.64521037]
[1723097743901,6.1669,153.29,153.19,36.89]
[1723097744086,6.1669,153.29,153.2,46.64490427]
[1723097744419,6.1669,153.29,153.21,20.0]
[1723097744621,6.1669,153.29,153.22,45.17]
[1723097744804,6.1669,153.29,153.23,21.3049623]
[1723097745102,6.1669,153.29,153.24,1.3049623]
[1723097745507,6.1669,153.29,153.23,20.0]
[1723097745723,6.1669,153.29,153.23,21.30496207]
[1723097746088,6.1669,153.29,153.24,1.30487691]
[1723097746280,15.1007,153.31,153.25,0.17]
[1723097746688,15.1007,153.31,153.25,20.17]
[1723097746886,6.444,153.33,153.26,46.30472029]
[1723097747092,6.444,153.33,153.27,21.30472013]
[1723097748893,6.444,153.33,153.28,45.0]
[1723097749434,6.444,153.33,153.27,20.0]
[1723097749584,6.444,153.33,153.23,20.17]
[1723097749790,6.444,153.33,153.24,46.47484906]
[1723097750104,6.444,153.33,153.25,20.0]
[1723097752021,0.17,153.32,153.2,2.65768273]
[1723097752217,15.3012,153.3,153.19,6.23515145]
[1723097752439,6.53,153.28,153.14,16.1288]
[1723097752723,6.53,153.28,153.16,8.075197]
[1723097753029,6.53,153.28,153.19,36.89]
[1723097753819,6.53,153.28,153.2,66.64500212]
[1723097754115,6.53,153.28,153.21,1.30500212]
[1723097754431,6.53,153.28,153.22,0.17]
[1723097755300,6.53,153.28,153.21,0.17]
[1723097756594,15.3012,153.3,153.21,1.47491747]
[1723097756907,6.024,153.31,153.22,38.36483937]
[1723097757102,6.024,153.31,153.23,65.17]
[1723097757325,6.024,153.31,153.24,0.17]
[1723097760002,15.31,153.34,153.24,0.17]
[1723097760405,15.31,153.34,153.24,1.47453828]
[1723097760623,15.31,153.34,153.25,0.17]
[1723097760834,15.31,153.34,153.24,0.17]
[1723097761713,0.65257114,153.25,153.24,1.47453622]
[1723097761912,0.65257114,153.25,153.24,58.14453622]
[1723097762240,0.65257114,153.25,153.24,128.07466882]
[1723097762610,15.0008,153.38,153.24,128.07466882]
[1723097762836,15.0008,153.38,153.28,36.89]
[1723097763049,15.0008,153.38,153.29,20.34]
[1723097763338,0.8149203,153.42,153.31,56.5]
[1723097763514,0.8149203,153.42,153.32,20.34]
[1723097764113,0.8149203,153.42,153.32,0.34]
[1723097764743,0.8149203,153.42,153.33,1.30375588]
[1723097764937,0.8149203,153.42,153.34,0.34]
[1723097765325,0.8149203,153.42,153.34,45.34]
[1723097765639,0.8149203,153.42,153.35,21.3035968]
[1723097765839,0.8149203,153.42,153.36,45.34]
[1723097766024,0.8149203,153.42,153.37,20.0]
[1723097766339,0.8149203,153.42,153.38,46.47342242]
[1723097766640,0.8149203,153.42,153.39,20.17]
[1723097766837,0.8149203,153.42,153.4,45.0]
[1723097767039,0.8149203,153.42,153.41,20.0]
[1723097767248,0.8149203,153.42,153.41,65.0]